[Event "World Junior U20 Girls 2018"]
[Site "Gebze"]
[Date "2018.09.11"]
[Round "7"]
[White "Kyrkjebo, Marte B"]
[Black "Rousseau, Christilla"]
[Result "1/2-1/2"]
[ECO "B12"]
[WhiteElo "1935"]
[BlackElo "1677"]
[Annotator "NA"]
[PlyCount "97"]
[EventDate "2018.09.05"]
[EventType "swiss"]
[EventCountry "TUR"]
[SourceTitle "playchess.com"]
[Source "ChessBase"]
[SourceQuality "1"]
[TimeControl "40/5400+30:1800+30"]

1. e4 {[%emt 0:00:30]} c6 {[%emt 0:00:30]} 2. d4 {[%emt 0:00:30]} d5 {[%emt 0:00:30]} 3. e5 {[%emt 0:00:00]} Bf5 {[%emt 0:00:00]} 4. Nf3 {[%emt 0:00:00]} e6 {[%emt 0:00:00]} 5. Be2 {[%emt 0:00:00]} c5 {[%emt 0:00:30]} 6. Be3 {[%emt 0:01:00]} Qb6 {[%emt 0:07:30]} 7. Nc3 {[%emt 0:04:30]} c4 {[%emt 0:29:30]} 8. Qc1 {[%emt 0:13:30]} Nc6 {[%emt 0:02:30]} 9. O-O {[%emt 0:03:30]} Qd8 {[%emt 0:06:30]} 10. Qd2 {[%emt 0:17:30]} h6 {[%emt 0:06:30]} 11. Ne1 {[%emt 0:09:30]} Nge7 {[%emt 0:02:30]} 12. f4 $11 {[%emt 0:01:30]} Bh7 {[%emt 0:02:30]} 13. Nf3 {[%emt 0:00:30]} Nf5 {[%emt 0:00:30]} 14. Bf2 {[%emt 0:00:30]} a6 {[%emt 0:04:30]} 15. g4 {[%emt 0:13:30]} Nfe7 {[%emt 0:00:30]} 16. Bg3 {[%emt 0:01:30]} b5 {[%emt 0:01:30]} 17. Nh4 {[%emt 0:04:30]} Qb6 {[%emt 0:02:30]} 18. Rad1 {[%emt 0:01:30]} Qd8 {[%emt 0:10:59]} 19. Ra1 {[%emt 0:00:30]} Qb6 {[%emt 0:00:30]} 20. Rad1 {[%emt 0:00:30]} Nc8 {[%emt 0:00:30]} 21. Kh1 {[%emt 0:03:30]} b4 {[%emt 0:09:01]} 22. Na4 {[%emt 0:02:30]} Qa5 {[%emt 0:00:32]} 23. b3 {[%emt 0:02:22]} c3 {[%emt 0:00:43]} 24. Qc1 {[%emt 0:01:15]} Be7 {[%emt 0:02:33]} 25. Ng2 {[%emt 0:07:05]} N8a7 {[%emt 0:01:32]} 26. f5 {[%emt 0:02:03]} Bg5 {[%emt 0:02:46]} 27. Bf4 {[%emt 0:00:40]} Bxf4 {[%emt 0:03:30]} 28. Qxf4 {[%emt 0:00:41]} O-O {[%emt 0:01:49]} 29. f6 {[%emt 0:05:19]} g5 {[%emt 0:00:19]} 30. Qg3 {[%emt 0:01:06]} Bxc2 {[%emt 0:00:31]} 31. Qh3 {[%emt 0:00:59]} Kh7 {[%emt 0:00:09]} 32. Bd3+ {[%emt 0:00:00]} Bxd3 {[%emt 0:00:38]} 33. Qxd3+ {[%emt 0:00:00]} Kh8 {[%emt 0:00:06]} 34. Rf3 {[%emt 0:01:26]} Rg8 {[%emt 0:00:18]} 35. Rh3 {[%emt 0:00:34]} Rg6 {[%emt 0:00:33]} 36. Rh5 {[%emt 0:00:54]} Qb5 {[%emt 0:00:38]} 37. Qc2 {[%emt 0:00:48]} Nxd4 {[%emt 0:00:22]} 38. Qf2 {[%emt 0:01:42]} c2 {[%emt 0:00:55]} 39. Qxd4 {[%emt 0:01:22]} cxd1=Q+ {[%emt 0:00:30]} 40. Qxd1 {[%emt 0:00:00]} Rc8 {[%emt 0:00:17]} 41. h4 {[%emt 0:30:25]} Qc6 {[%emt 0:30:23]} 42. Kh2 {[%emt 0:00:00]} Qc2 {[%emt 0:00:00]} 43. Qf3 {[%emt 0:00:00]} Qe4 {[%emt 0:00:00]} 44. Qg3 {[%emt 0:00:00]} Rc2 {[%emt 0:00:00]} 45. hxg5 {[%emt 0:00:00]} Rxg2+ {[%emt 0:00:00]} 46. Qxg2 {[%emt 0:00:00]} Qxe5+ {[%emt 0:00:00]} 47. Kg1 {[%emt 0:00:00]} Qe1+ {[%emt 0:00:00]} 48. Kh2 {[%emt 0:00:00]} Qe5+ {[%emt 0:00:00]} 49. Kg1 {[%emt 0:00:00]} 1/2-1/2

[Event "World Junior U20 Girls 2018"]
[Site "Gebze"]
[Date "2018.09.11"]
[Round "7"]
[White "Salah, Nadezhda"]
[Black "Varshini, V."]
[Result "0-1"]
[ECO "A28"]
[WhiteElo "1918"]
[BlackElo "2173"]
[Annotator "ChessBase"]
[PlyCount "56"]
[EventDate "2018.09.05"]
[EventType "swiss"]
[EventCountry "TUR"]
[SourceTitle "playchess.com"]
[Source "ChessBase"]
[SourceQuality "1"]
[TimeControl "40/5400+30:1800+30"]

1. c4 {[%emt 0:00:30]} e5 {[%emt 0:00:30]} 2. Nc3 {[%emt 0:00:00]} Nf6 {[%emt 0:00:30]} 3. Nf3 {[%emt 0:00:00]} Nc6 {[%emt 0:00:30]} 4. e3 {[%emt 0:00:30]} Be7 {[%emt 0:06:30]} 5. Qb3 {[%emt 0:01:30]} d6 {[%emt 0:01:30]} 6. Be2 {[%emt 0:01:30]} O-O {[%emt 0:00:30]} 7. O-O {[%emt 0:01:30]} Rb8 {[%emt 0:02:30]} 8. d4 {[%emt 0:01:30]} exd4 {[%emt 0:16:30]} 9. exd4 {[%emt 0:05:30]} a6 {[%emt 0:02:30]} 10. a3 {[%emt 0:11:30]} Re8 {[%emt 0:03:30]} 11. h3 {[%emt 0:11:30]} h6 {[%emt 0:05:30]} 12. Rd1 {[%emt 0:34:30]} Bf8 {[%emt 0:01:30]} 13. Qc2 {[%emt 0:00:30]} Bd7 {[%emt 0:00:30]} 14. b3 {[%emt 0:00:30]} Ne7 {[%emt 0:12:30]} 15. Bd3 {[%emt 0:03:30]} Qc8 {[%emt 0:01:30]} 16. Ne2 {[%emt 0:04:08]} Bf5 {[%emt 0:11:30]} 17. Ng3 {[%emt 0:00:07]} Bxd3 {[%emt 0:01:30]} 18. Qxd3 {[%emt 0:00:15]} Ng6 {[%emt 0:00:30]} 19. d5 {[%emt 0:01:40]} Nd7 {[%emt 0:03:30]} 20. Bb2 {[%emt 0:00:54]} Nde5 {[%emt 0:03:30]} 21. Qc3 {[%emt 0:01:18]} Nf4 {[%emt 0:06:52]} 22. Nxe5 {[%emt 0:01:43]} dxe5 {[%emt 0:00:14]} 23. Re1 {[%emt 0:00:00]} b5 {[%emt 0:04:24]} 24. Ne4 {[%emt 0:06:49]} Rb6 {[%emt 0:06:01]} 25. Re3 {[%emt 0:02:42]} Rg6 {[%emt 0:01:07]} 26. Ng3 {[%emt 0:00:25]} h5 {[%emt 0:00:26]} 27. h4 {[%emt 0:00:50]} Bc5 {[%emt 0:01:22]} 28. Rf3 {[%emt 0:01:32]} Rxg3 {[%emt 0:00:15]} 0-1

[Event "World Junior U20 Girls 2018"]
[Site "Gebze"]
[Date "2018.09.11"]
[Round "7"]
[White "Ince, Safiye Oyku"]
[Black "Auvray, Honorine"]
[Result "1/2-1/2"]
[ECO "B22"]
[WhiteElo "1905"]
[BlackElo "2050"]
[Annotator "NA"]
[PlyCount "92"]
[EventDate "2018.09.05"]
[EventType "swiss"]
[EventCountry "TUR"]
[SourceTitle "playchess.com"]
[Source "ChessBase"]
[SourceQuality "1"]
[TimeControl "40/5400+30:1800+30"]

1. e4 {[%emt 0:00:30]} c5 {[%emt 0:00:30]} 2. Nf3 {[%emt 0:00:30]} Nc6 {[%emt 0:00:30]} 3. c3 {[%emt 0:00:00]} Nf6 {[%emt 0:00:00]} 4. e5 {[%emt 0:00:00]} Nd5 {[%emt 0:00:00]} 5. Bc4 {[%emt 0:00:00]} Nb6 {[%emt 0:00:30]} 6. Bb3 {[%emt 0:00:00]} d5 {[%emt 0:00:00]} 7. exd6 {[%emt 0:00:30]} Qxd6 {[%emt 0:00:00]} 8. O-O {[%emt 0:00:30]} c4 {[%emt 0:00:30]} 9. Bc2 {[%emt 0:00:30]} Bg4 {[%emt 0:00:00] B22: Sicilian: 2 c3} (9... g6 10. b3 Bg7 11. Na3 cxb3 12. axb3 O-O 13. Nc4 Nxc4 14. bxc4 Be6 15. Qe2 Qc5 16. Ra4 Na5 17. d4 Qc7 18. Bd3 Rac8 19. Bf4 Qxf4 20. Rxa5 {½-½ (31) Piorun,K (2633)-Wojtaszek,R (2750) Warsaw 2018}) 10. h3 {[%emt 0:00:30]} Bh5 {[%emt 0:00:00]} 11. Re1 {[%emt 0:00:00]} e6 {[%emt 0:01:30]} 12. b3 {[%emt 0:00:00]} Be7 {[%emt 0:08:30]} 13. Na3 {[%emt 0:06:30]} cxb3 {[%emt 0:09:30]} 14. axb3 {[%emt 0:00:30]} O-O {[%emt 0:02:30]} 15. d4 {[%emt 0:01:30]} Bf6 $146 {[%emt 0:11:30]} ({Predecessor:} 15... Nd5 16. Bd2 Rac8 17. Be4 {1-0 (34) Gabrielian,A (2554)-Nikologorskiy,K (2414) Moscow 2015}) 16. Nb5 {[%emt 0:19:30]} Qb8 {[%emt 0:03:30]} 17. Qd3 {[%emt 0:15:30]} Bg6 {[%emt 0:01:30]} 18. Qd2 {[%emt 0:00:30]} Bxc2 {[%emt 0:07:30]} 19. Qxc2 {[%emt 0:01:30]} a6 {[%emt 0:00:30]} 20. Na3 {[%emt 0:01:30]} Nd5 {[%emt 0:07:30]} 21. Nc4 {[%emt 0:06:30]} Qc7 {[%emt 0:00:30]} 22. Bg5 {[%emt 0:06:30]} Rac8 {[%emt 0:14:30]} 23. Bxf6 {[%emt 0:03:30]} Nxf6 {[%emt 0:00:30]} 24. Rac1 {[%emt 0:01:30]} Rfd8 {[%emt 0:01:30]} 25. Red1 $11 {[%emt 0:02:30]} b5 {[%emt 0:06:30]} 26. Ne3 {[%emt 0:01:30]} Qf4 {[%emt 0:00:30]} 27. Qb2 {[%emt 0:05:30]} Rb8 {[%emt 0:08:16]} 28. Qa1 {[%emt 0:01:30]} a5 {[%emt 0:02:21]} 29. c4 {[%emt 0:00:30]} bxc4 {[%emt 0:01:55]} 30. Rxc4 {[%emt 0:02:30]} Qd6 {[%emt 0:01:12]} 31. Qa4 {[%emt 0:00:30]} Ne7 {[%emt 0:01:42]} 32. Rc5 {[%emt 0:02:30]} Rb4 {[%emt 0:03:21]} 33. Qxa5 {[%emt 0:01:30]} Rxb3 {[%emt 0:00:15]} 34. Nc4 {[%emt 0:00:30]} Qb8 {[%emt 0:00:45]} 35. Nce5 {[%emt 0:00:30]} Nfd5 {[%emt 0:01:43]} 36. Ng5 {[%emt 0:02:01]} f6 {[%emt 0:04:54]} 37. Nxe6 {[%emt 0:00:13]} Rd6 {[%emt 0:00:08]} 38. Nc4 {[%emt 0:00:06]} Rb1 {[%emt 0:01:48]} 39. Rxb1 {[%emt 0:01:10]} Qxb1+ {[%emt 0:00:30]} 40. Kh2 {[%emt 0:00:00]} Rxe6 {[%emt 0:00:00]} 41. Rxd5 {[%emt 0:01:30]} Nxd5 {[%emt 0:09:40]} 42. Qd8+ {[%emt 0:01:30]} Kf7 {[%emt 0:01:30]} 43. Qxd5 {[%emt 0:00:00]} Qb8+ {[%emt 0:00:00]} 44. g3 {[%emt 0:00:00]} Qc7 {[%emt 0:02:12]} 45. Qh5+ {[%emt 0:01:30]} Kg8 {[%emt 0:01:02]} 46. d5 {[%emt 0:00:30]} Qxc4 {[%emt 0:07:40]} 1/2-1/2

[Event "World Junior U20 Girls 2018"]
[Site "Gebze"]
[Date "2018.09.11"]
[Round "7"]
[White "Koljevic, Nikolina"]
[Black "Nastase, Andreea-Cristina"]
[Result "1/2-1/2"]
[ECO "B53"]
[WhiteElo "1898"]
[BlackElo "1983"]
[Annotator "NA RC"]
[PlyCount "127"]
[EventDate "2018.09.05"]
[EventType "swiss"]
[EventCountry "TUR"]
[SourceTitle "playchess.com"]
[Source "ChessBase"]
[SourceQuality "1"]
[TimeControl "40/5400+30:1800+30"]

1. e4 {[%emt 0:00:30]} c5 {[%emt 0:00:30]} 2. Nf3 {[%emt 0:00:30]} d6 {[%emt 0:00:30]} 3. d4 {[%emt 0:00:30]} cxd4 {[%emt 0:00:00]} 4. Qxd4 {[%emt 0:00:00]} a6 {[%emt 0:00:00]} 5. Be3 {[%emt 0:00:00]} Nc6 {[%emt 0:00:00]} 6. Qd2 {[%emt 0:00:00]} Nf6 {[%emt 0:00:00]} 7. Nc3 {[%emt 0:00:00]} e6 {[%emt 0:00:00]} 8. O-O-O {[%emt 0:00:00]} Be7 {[%emt 0:00:00] LiveBook: 40 Games B53: Sicilian: 2...d6: Lines with Qxd4} (8... Qc7 9. Bf4 Ng4 10. Kb1 Bd7 11. h3 Nge5 12. Nd4 Rc8 13. Nxc6 Bxc6 14. Bg3 Be7 15. f4 Nd7 16. f5 e5 {0-1 (40) Zelcic,R (2501)-Rodshtein,M (2699) Katowice 2017}) 9. Nd4 {[%emt 0:01:00]} Ng4 $146 {[%emt 0:02:30]} ({Predecessor:} 9... Bd7 10. f3 Rc8 11. Qf2 O-O 12. g4 Ne5 13. Kb1 b5 14. g5 Ne8 15. Bd3 Nc4 16. Bxc4 Rxc4 {0-1 (47) Mihalecz,A (2093)-Suranyi,P (2131) Hungary 2010}) 10. Kb1 {[%emt 0:03:30]} Nxe3 {[%emt 0:01:30]} 11. Qxe3 {[%emt 0:00:30]} Nxd4 {[%emt 0:01:30]} 12. Qxd4 {[%emt 0:00:30]} O-O {[%emt 0:00:30]} 13. f3 {[%emt 0:02:30]} Qc7 {[%emt 0:01:30]} 14. Qc4 {[%emt 0:01:30]} Qxc4 {[%emt 0:01:30]} 15. Bxc4 {[%emt 0:00:30]} b5 {[%emt 0:00:00]} 16. Bb3 {[%emt 0:00:00]} Bb7 {[%emt 0:00:00]} 17. a4 {[%emt 0:01:00]} b4 {[%emt 0:02:30]} 18. Ne2 {[%emt 0:00:30]} Rfd8 {[%emt 0:00:30]} 19. Rd4 {[%emt 0:01:30]} a5 {[%emt 0:02:30]} 20. Rhd1 {[%emt 0:00:30]} Ba6 {[%emt 0:02:30]} 21. Ng3 {[%emt 0:02:30]} g6 {[%emt 0:01:30]} 22. Nh1 {[%emt 0:09:30]} Rac8 {[%emt 0:01:30]} 23. Ng3 {[%emt 0:03:30]} h5 {[%emt 0:03:30]} 24. f4 {[%emt 0:00:30]} h4 {[%emt 0:01:30]} 25. Nf1 {[%emt 0:00:30]} e5 {[%emt 0:07:30]} 26. fxe5 {[%emt 0:03:30]} dxe5 {[%emt 0:00:00]} 27. Rd7 {[%emt 0:08:30]} Be2 {[%emt 0:02:00]} 28. R1d5 $11 {[%emt 0:06:30]} Rxd7 {[%emt 0:17:30]} 29. Rxd7 {[%emt 0:00:30]} Bxf1 {[%emt 0:00:30]} 30. Rxe7 {[%emt 0:00:30]} Bc4 {[%emt 0:00:00]} 31. Rxe5 {[%emt 0:08:30]} Bxb3 {[%emt 0:00:00]} 32. cxb3 {[%emt 0:00:30]} Ra8 {[%emt 0:00:30]} 33. Kc2 {[%emt 0:00:30]} Kg7 {[%emt 0:00:30]} 34. Kd3 {[%emt 0:00:30]} f6 {[%emt 0:00:30]} 35. Rc5 {[%emt 0:00:30]} g5 {[%emt 0:00:30]} 36. Ke3 {[%emt 0:09:30]} Kg6 {[%emt 0:04:30]} 37. g3 {[%emt 0:03:30]} hxg3 {[%emt 0:01:30]} 38. hxg3 {[%emt 0:00:30]} Ra7 {[%emt 0:02:30]} 39. g4 {[%emt 0:03:30]} Rh7 {[%emt 0:01:30]} 40. Rxa5 {[%emt 0:00:00]} Rh3+ {[%emt 0:00:00]} 41. Kd4 {[%emt 0:02:00]} Rxb3 {[%emt 0:01:00]} 42. Rb5 {[%emt 0:01:30]} Rxb2 {[%emt 0:00:00]} 43. Rb6 {[%emt 0:00:00]} Rg2 {[%emt 0:05:00]} 44. e5 {[%emt 0:02:00]} Rxg4+ {[%emt 0:00:30]} 45. Ke3 {[%emt 0:00:00]} b3 {[%emt 0:01:30]} 46. Rxf6+ {[%emt 0:02:00]} Kg7 {[%emt 0:02:30]} 47. Rb6 {[%emt 0:00:30]} Rxa4 {[%emt 0:00:30]} 48. Rxb3 {[%emt 0:00:30]} Kg6 {[%emt 0:00:00]} 49. Rb5 {[%emt 0:00:30]} Ra1 {[%emt 0:01:00]} 50. Kf3 {[%emt 0:01:30]} Rf1+ {[%emt 0:01:30]} 51. Kg4 {[%emt 0:00:30]} Rf4+ {[%emt 0:01:30]} 52. Kg3 {[%emt 0:00:30]} Re4 {[%emt 0:01:30]} 53. Kf3 {[%emt 0:00:30]} Re1 {[%emt 0:00:00]} 54. Kg4 {[%emt 0:00:30]} Rg1+ {[%emt 0:00:00]} 55. Kf3 {[%emt 0:00:00]} Kf5 {[%emt 0:00:30]} 56. Ra5 {[%emt 0:02:00]} Ke6 {[%emt 0:02:30]} 57. Ke4 {[%emt 0:00:30]} Re1+ {[%emt 0:00:30]} 58. Kf3 {[%emt 0:00:00]} Rxe5 {[%emt 0:00:00]} 59. Rxe5+ {[%emt 0:00:00]} Kxe5 {[%emt 0:00:00]} 60. Kg4 {[%emt 0:00:30]} Kf6 {[%emt 0:00:00]} 61. Kg3 {[%emt 0:00:30]} Kf5 {[%emt 0:00:00]} 62. Kf3 {[%emt 0:00:30]} g4+ {[%emt 0:00:30]} 63. Kg3 {[%emt 0:00:30]} Kg5 {[%emt 0:00:30]} 64. Kg2 {[%emt 0:00:30]} 1/2-1/2

[Event "World Junior U20 Girls 2018"]
[Site "Gebze"]
[Date "2018.09.11"]
[Round "7"]
[White "Aydin, Gulenay"]
[Black "Celik, Eda"]
[Result "0-1"]
[ECO "C49"]
[WhiteElo "1882"]
[BlackElo "1970"]
[Annotator "NA"]
[PlyCount "80"]
[EventDate "2018.09.05"]
[EventType "swiss"]
[EventCountry "TUR"]
[SourceTitle "playchess.com"]
[Source "ChessBase"]
[SourceQuality "1"]
[TimeControl "40/5400+30:1800+30"]

1. e4 {[%emt 0:00:30]} e5 {[%emt 0:00:30]} 2. Nf3 {[%emt 0:00:30]} Nc6 {[%emt 0:00:00]} 3. Nc3 {[%emt 0:00:30]} Nf6 {[%emt 0:00:00]} 4. Bb5 {[%emt 0:00:00]} Bb4 {[%emt 0:01:30]} 5. O-O {[%emt 0:00:00]} O-O {[%emt 0:00:30]} 6. d3 {[%emt 0:00:30]} d6 {[%emt 0:00:30]} 7. Bg5 {[%emt 0:00:30]} Ne7 {[%emt 0:04:30]} 8. Nh4 {[%emt 0:02:30] C49: Four Knights: 4 Bb5 Bb4} (8. Bxf6 gxf6 9. Nh4 Bxc3 10. bxc3 f5 11. Qh5 fxe4 12. dxe4 Ng6 13. Nf5 Qf6 14. g3 Bxf5 15. exf5 Ne7 16. Bd3 d5 17. f3 Kh8 18. Kh1 {½-½ (67) Yeoh,L (2497)-Wang,H (2711) Kuala Lumpur 2018}) 8... c6 {[%emt 0:01:30]} 9. Ba4 {[%emt 0:02:30]} Nd7 {[%emt 0:05:30]} 10. Bb3 {[%emt 0:10:30]} Nc5 {[%emt 0:07:30]} 11. Ne2 {[%emt 0:10:30]} Nxb3 {[%emt 0:01:30]} 12. axb3 {[%emt 0:00:00]} Bc5 $146 {[%emt 0:06:30]} ({Predecessor:} 12... d5 13. Ng3 f6 14. Be3 a5 15. h3 Be6 {0-1 (46) Fischvogt,E-Maierhofer,J (2203) ICCF email 2014}) 13. Ng3 {[%emt 0:06:00]} f6 {[%emt 0:03:30]} 14. Be3 {[%emt 0:00:30]} Bxe3 {[%emt 0:03:30]} 15. fxe3 {[%emt 0:00:30]} d5 {[%emt 0:04:30]} 16. exd5 {[%emt 0:05:30]} cxd5 {[%emt 0:06:30]} 17. d4 {[%emt 0:03:30]} Be6 {[%emt 0:11:30]} 18. Nf3 {[%emt 0:08:30]} e4 {[%emt 0:00:30]} 19. Nd2 {[%emt 0:00:30]} f5 {[%emt 0:10:30]} 20. Ne2 {[%emt 0:11:30]} g5 {[%emt 0:01:30]} 21. c4 {[%emt 0:02:30]} a6 {[%emt 0:07:30]} 22. h4 {[%emt 0:08:30]} gxh4 $15 {[%emt 0:05:21]} 23. Nf4 {[%emt 0:02:30]} Bf7 {[%emt 0:00:30]} 24. Qe1 {[%emt 0:02:30]} Ng6 {[%emt 0:02:12]} 25. Kh1 {[%emt 0:06:24]} Rc8 {[%emt 0:02:48]} 26. Rc1 {[%emt 0:02:53]} Kh8 {[%emt 0:04:07]} 27. Nxg6+ {[%emt 0:04:23]} hxg6 {[%emt 0:00:50]} 28. Rf4 {[%emt 0:00:34]} Kg7 {[%emt 0:02:17]} 29. Rxh4 {[%emt 0:01:05]} g5 {[%emt 0:04:02]} 30. Rh2 {[%emt 0:00:45]} Qc7 {[%emt 0:01:16]} 31. Qe2 {[%emt 0:03:54]} Rh8 {[%emt 0:00:49]} 32. g4 {[%emt 0:03:05]} Rxh2+ {[%emt 0:00:33]} 33. Qxh2 {[%emt 0:00:40]} Rh8 {[%emt 0:01:33]} 34. Qxh8+ {[%emt 0:01:50]} Kxh8 {[%emt 0:00:30]} 35. Kg2 {[%emt 0:00:30]} f4 {[%emt 0:00:30]} 36. Nf1 {[%emt 0:00:30]} f3+ {[%emt 0:00:30]} 37. Kf2 {[%emt 0:00:30]} Be6 {[%emt 0:00:30]} 38. Rc3 {[%emt 0:00:30]} Qh7 {[%emt 0:00:31]} 39. cxd5 {[%emt 0:00:22]} Qh4+ {[%emt 0:00:27]} 40. Ng3 {[%emt 0:00:00]} Qh2+ {[%emt 0:00:00]} 0-1

[Event "World Junior U20 Girls 2018"]
[Site "Gebze"]
[Date "2018.09.11"]
[Round "7"]
[White "Sade, Defne"]
[Black "Esti, Kubra Selenay"]
[Result "1-0"]
[ECO "B06"]
[WhiteElo "1826"]
[BlackElo "1662"]
[Annotator "NA"]
[PlyCount "87"]
[EventDate "2018.09.05"]
[EventType "swiss"]
[EventCountry "TUR"]
[SourceTitle "playchess.com"]
[Source "ChessBase"]
[SourceQuality "1"]
[TimeControl "40/5400+30:1800+30"]

1. e4 {[%emt 0:00:30]} g6 {[%emt 0:00:30]} 2. d4 {[%emt 0:00:00]} Bg7 {[%emt 0:00:30]} 3. Nf3 {[%emt 0:00:00]} c6 {[%emt 0:00:00]} 4. Bc4 {[%emt 0:00:30]} d5 {[%emt 0:02:00] B06: Modern Defence} 5. exd5 {[%emt 0:00:30]} cxd5 {[%emt 0:00:30]} 6. Bd3 {[%emt 0:00:30]} Bg4 {[%emt 0:01:30]} 7. c3 {[%emt 0:00:00]} e6 {[%emt 0:07:30]} (7... Nc6 8. h3 Bxf3 9. Qxf3 Nf6 10. O-O O-O 11. Qe3 {0-1 (41) Nenezic,D (2116)-Kalezic,B (2463) Sarajevo 2018}) 8. h3 $146 {[%emt 0:01:00]} ({Predecessor:} 8. O-O Ne7 9. Bg5 O-O 10. Re1 Nbc6 11. Nbd2 Qc7 12. Qc2 Bxf3 13. Nxf3 {½-½ (31) Hennemann,F-Loesch,A Gernsheim 2013}) 8... Bxf3 {[%emt 0:00:30]} 9. Qxf3 {[%emt 0:00:30]} Nd7 {[%emt 0:05:30]} 10. O-O {[%emt 0:03:30]} Ne7 {[%emt 0:01:30]} 11. Re1 {[%emt 0:02:30]} O-O {[%emt 0:10:30]} 12. Bf4 {[%emt 0:04:30]} Qb6 {[%emt 0:06:30]} 13. Qe2 {[%emt 0:02:30]} Nc6 {[%emt 0:07:30]} 14. Be3 {[%emt 0:07:30]} Rfe8 {[%emt 0:07:30]} 15. f4 {[%emt 0:06:30]} f6 {[%emt 0:08:30]} 16. Qf2 {[%emt 0:04:30]} Qc7 {[%emt 0:06:30]} 17. Na3 {[%emt 0:02:30]} a6 {[%emt 0:00:30]} 18. Nc2 {[%emt 0:01:30]} Na5 {[%emt 0:04:30]} 19. Rad1 {[%emt 0:00:30]} Rac8 {[%emt 0:00:30]} 20. Bc1 {[%emt 0:00:30]} Nc4 {[%emt 0:03:30]} 21. Re2 {[%emt 0:15:30]} Qb6 {[%emt 0:04:40]} 22. Bxc4 {[%emt 0:01:30]} Rxc4 {[%emt 0:00:53]} 23. Rde1 {[%emt 0:00:30]} Rcc8 {[%emt 0:02:23]} 24. Nb4 {[%emt 0:07:30]} Qd6 {[%emt 0:05:38]} 25. Qf3 {[%emt 0:01:30]} Nb6 {[%emt 0:05:15]} 26. Nd3 {[%emt 0:03:30]} Nd7 {[%emt 0:00:43] [#]} 27. Nb4 $11 {[%emt 0:15:14]} (27. f5 $1 $16 {[%mdl 512]} gxf5 (27... exf5 28. Rxe8+) 28. Bf4) 27... Nb6 {[%emt 0:02:51]} 28. h4 {[%emt 0:02:03]} e5 {[%emt 0:02:52]} 29. f5 {[%emt 0:01:36]} e4 {[%emt 0:01:16]} 30. Qh3 {[%emt 0:03:43]} a5 {[%emt 0:00:50]} 31. Nc2 {[%emt 0:00:21]} Bf8 {[%emt 0:00:58]} 32. Ne3 {[%emt 0:03:36]} Bg7 {[%emt 0:01:05]} 33. g3 {[%emt 0:02:34]} Red8 {[%emt 0:00:34]} 34. Rh2 {[%emt 0:01:20]} Qd7 {[%emt 0:00:21]} 35. g4 {[%emt 0:00:47]} Nc4 {[%emt 0:00:35]} 36. Ng2 {[%emt 0:02:17]} Nd6 {[%emt 0:00:31]} 37. Rf1 {[%emt 0:01:18]} b5 {[%emt 0:00:30]} 38. Ne3 {[%emt 0:02:04]} Nc4 {[%emt 0:00:30]} 39. g5 {[%emt 0:00:40]} Nxe3 {[%emt 0:00:23]} 40. Bxe3 {[%emt 0:00:00]} Bh8 {[%emt 0:00:00]} 41. h5 {[%emt 0:03:57]} b4 {[%emt 0:13:59]} 42. hxg6 {[%emt 0:06:30]} bxc3 {[%emt 0:05:04]} 43. gxh7+ {[%emt 0:01:30]} Kf8 {[%emt 0:00:48]} 44. gxf6 {[%emt 0:01:30]} 1-0

[Event "World Junior U20 Girls 2018"]
[Site "Gebze"]
[Date "2018.09.11"]
[Round "7"]
[White "Duran, Esma Doga"]
[Black "Tian, Shi Yuan"]
[Result "0-1"]
[ECO "D19"]
[WhiteElo "1825"]
[BlackElo "1923"]
[Annotator "NA"]
[PlyCount "130"]
[EventDate "2018.09.05"]
[EventType "swiss"]
[EventCountry "TUR"]
[SourceTitle "playchess.com"]
[Source "ChessBase"]
[SourceQuality "1"]
[TimeControl "40/5400+30:1800+30"]

1. d4 {[%emt 0:00:30]} d5 {[%emt 0:00:30]} 2. c4 {[%emt 0:00:30]} c6 {[%emt 0:00:30]} 3. Nf3 {[%emt 0:00:00]} Nf6 {[%emt 0:00:00]} 4. Nc3 {[%emt 0:00:00]} dxc4 {[%emt 0:00:00]} 5. a4 {[%emt 0:00:00]} Bf5 {[%emt 0:00:00]} 6. e3 {[%emt 0:01:00]} e6 {[%emt 0:00:00]} 7. Bxc4 {[%emt 0:00:30]} Bb4 {[%emt 0:00:00]} 8. O-O {[%emt 0:00:00]} Nbd7 {[%emt 0:00:00]} 9. Qe2 {[%emt 0:03:00]} O-O {[%emt 0:02:30]} 10. e4 {[%emt 0:01:30]} Bg6 {[%emt 0:00:30]} 11. Bd3 {[%emt 0:03:30]} Bh5 {[%emt 0:00:30]} 12. e5 {[%emt 0:16:30]} Nd5 {[%emt 0:00:00]} 13. Bd2 {[%emt 0:05:30] [#] D19: Slav Defence: 5 a4 Bf5 6 e3: Main line with 9 Qe2} Rc8 $146 {[%emt 0:16:00]} ({Predecessor:} 13... c5 14. Nxd5 Bxd2 15. Qxd2 Bxf3 16. gxf3 exd5 17. f4 cxd4 18. Rfc1 Re8 19. Bf5 Nf8 20. Ra3 Ne6 {0-1 (51) Sasikiran,K (2690)-Rublevsky,S (2680) Foros 2007}) 14. Nxd5 {[%emt 0:20:30]} Bxd2 {[%emt 0:00:30]} 15. Qxd2 {[%emt 0:00:30]} cxd5 {[%emt 0:05:30]} 16. Rac1 {[%emt 0:14:30]} Qe7 {[%emt 0:14:30]} 17. Qg5 {[%emt 0:03:30]} Qxg5 {[%emt 0:00:30]} 18. Nxg5 {[%emt 0:00:30]} Bg6 {[%emt 0:00:30]} 19. Bxg6 {[%emt 0:00:30]} hxg6 {[%emt 0:00:30]} 20. b3 {[%emt 0:00:30]} Nb8 {[%emt 0:11:30]} 21. Nf3 {[%emt 0:17:17]} Nc6 {[%emt 0:01:30]} 22. Rfd1 {[%emt 0:01:08]} Rfd8 {[%emt 0:12:30]} 23. Kf1 {[%emt 0:00:45]} Nb4 {[%emt 0:00:30]} 24. Ke2 {[%emt 0:01:23]} Na2 {[%emt 0:00:30]} 25. Rxc8 {[%emt 0:02:00]} Rxc8 {[%emt 0:00:30]} 26. Kd2 {[%emt 0:05:16]} Nc3 {[%emt 0:01:30]} 27. Rc1 {[%emt 0:01:36]} Ne4+ {[%emt 0:00:30]} 28. Kd1 {[%emt 0:00:30]} Nxf2+ {[%emt 0:00:00]} 29. Kd2 {[%emt 0:00:00]} Ne4+ $17 {[%emt 0:06:00]} 30. Kd1 {[%emt 0:00:00]} Rxc1+ {[%emt 0:00:30]} 31. Kxc1 {[%emt 0:00:00]} a5 {[%emt 0:00:30]} 32. Kc2 {[%emt 0:00:00]} Kf8 {[%emt 0:02:30]} 33. b4 {[%emt 0:00:26]} b6 {[%emt 0:00:30]} 34. Ne1 {[%emt 0:01:52]} Nf2 {[%emt 0:00:30]} 35. bxa5 {[%emt 0:00:43]} bxa5 {[%emt 0:00:30]} 36. Nf3 {[%emt 0:00:28]} Ne4 {[%emt 0:01:30]} 37. Ne1 {[%emt 0:00:46]} Ke7 {[%emt 0:00:30]} 38. Nd3 {[%emt 0:00:15]} Kd7 {[%emt 0:00:30]} 39. Kb3 {[%emt 0:00:37]} g5 {[%emt 0:02:30]} 40. Kc2 {[%emt 0:00:00]} Kc7 {[%emt 0:00:00]} 41. Kb3 {[%emt 0:03:28]} Nd2+ {[%emt 0:06:00]} 42. Kc3 {[%emt 0:00:30]} Nc4 {[%emt 0:00:30]} 43. Ne1 {[%emt 0:02:30]} Kd7 {[%emt 0:00:30]} 44. Nd3 {[%emt 0:01:30]} Ne3 {[%emt 0:05:30]} 45. Ne1 {[%emt 0:00:30]} Nf1 {[%emt 0:00:30]} 46. h3 {[%emt 0:01:30]} Ne3 {[%emt 0:00:30]} 47. Kd3 {[%emt 0:00:30]} Nc4 {[%emt 0:00:30]} 48. Kc3 {[%emt 0:00:30]} Ke7 {[%emt 0:02:30]} 49. Nf3 {[%emt 0:00:30]} f6 {[%emt 0:03:30]} 50. Kb3 {[%emt 0:01:30]} Kf7 {[%emt 0:04:30]} 51. Kc3 {[%emt 0:01:30]} Kg6 {[%emt 0:01:30]} 52. g4 {[%emt 0:00:30]} Kf7 {[%emt 0:00:30]} 53. Kc2 {[%emt 0:01:30]} Ke7 {[%emt 0:01:30]} 54. Kc3 {[%emt 0:00:30]} Kd7 {[%emt 0:00:00]} 55. Kc2 {[%emt 0:00:30]} Ne3+ {[%emt 0:00:00]} 56. Kd2 {[%emt 0:00:30]} Ng2 {[%emt 0:01:30]} 57. Ng1 {[%emt 0:02:30]} Nf4 {[%emt 0:00:30]} 58. Ke3 {[%emt 0:00:30]} Kc6 {[%emt 0:00:30]} 59. Kf3 {[%emt 0:06:01]} fxe5 {[%emt 0:00:30]} 60. dxe5 {[%emt 0:00:30]} Nd3 {[%emt 0:00:30]} 61. Ke3 {[%emt 0:00:30]} Nxe5 {[%emt 0:00:30]} 62. Kd4 {[%emt 0:00:30]} Kd6 {[%emt 0:00:30]} 63. Ne2 {[%emt 0:00:11]} Nc6+ {[%emt 0:00:30]} 64. Kd3 {[%emt 0:00:48]} e5 {[%emt 0:02:30]} 65. Nc3 {[%emt 0:02:23]} e4+ {[%emt 0:00:30]} 0-1